[Event "Early-Titled-Tuesday-Blitz-March-19-2024"]
[Site "Chess.com"]
[Date "2024.03.19"]
[Round "7"]
[White "ChristianArca"]
[Black "IngOscarArdila"]
[Result "0-1"]
[WhiteElo "2671"]
[BlackElo "2412"]
[TimeControl "180+1"]
[EndTime "9:19:12 PDT"]
[Termination "IngOscarArdila won on time"]

1. Nf3 {[%clk 0:02:57.7]} 1... Nf6 {[%clk 0:02:58.5]} 2. c4 {[%clk 0:02:55.8]}
2... e6 {[%clk 0:02:58.2]} 3. d4 {[%clk 0:02:52.6]} 3... Be7 {[%clk 0:02:56.1]}
4. Nc3 {[%clk 0:02:51.6]} 4... d6 {[%clk 0:02:56.5]} 5. e4 {[%clk 0:02:51.6]}
5... O-O {[%clk 0:02:54.3]} 6. Bd3 {[%clk 0:02:49.4]} 6... Nbd7 {[%clk 0:02:53]}
7. e5 {[%clk 0:02:48.8]} 7... dxe5 {[%clk 0:02:45.6]} 8. dxe5 {[%clk 0:02:49.7]}
8... Nc5 {[%clk 0:02:19.2]} 9. Bc2 {[%clk 0:01:51.8]} 9... Qxd1+ {[%clk
0:02:15.1]} 10. Kxd1 {[%clk 0:01:50.8]} 10... Rd8+ {[%clk 0:02:11.6]} 11. Ke2
{[%clk 0:01:49.9]} 11... Ne8 {[%clk 0:01:56.8]} 12. Be3 {[%clk 0:01:42.4]} 12...
Bd7 {[%clk 0:01:29.7]} 13. b4 {[%clk 0:01:40.5]} 13... Na6 {[%clk 0:01:24]} 14.
a3 {[%clk 0:01:41.1]} 14... h6 {[%clk 0:01:16.2]} 15. Ne4 {[%clk 0:01:25.9]}
15... f5 {[%clk 0:01:13.7]} 16. exf6 {[%clk 0:01:05.6]} 16... Nxf6 {[%clk
0:01:13.2]} 17. Rad1 {[%clk 0:01:05.8]} 17... c6 {[%clk 0:00:52.3]} 18. Ne5
{[%clk 0:00:53.1]} 18... Nxe4 {[%clk 0:00:47.6]} 19. Bxe4 {[%clk 0:00:52.1]}
19... Be8 {[%clk 0:00:46.6]} 20. Rxd8 {[%clk 0:00:51.6]} 20... Rxd8 {[%clk
0:00:45.5]} 21. Bxa7 {[%clk 0:00:51.5]} 21... Bf6 {[%clk 0:00:41.2]} 22. f4
{[%clk 0:00:47.6]} 22... Bh5+ {[%clk 0:00:28.2]} 23. Nf3 {[%clk 0:00:20.6]}
23... Ra8 {[%clk 0:00:24.2]} 24. Bb6 {[%clk 0:00:16.9]} 24... Nb8 {[%clk
0:00:23.6]} 25. Ba5 {[%clk 0:00:10.7]} 25... b6 {[%clk 0:00:21.8]} 26. Bxb6
{[%clk 0:00:10.6]} 26... Rxa3 {[%clk 0:00:22]} 27. Rd1 {[%clk 0:00:08.3]} 27...
Na6 {[%clk 0:00:19.8]} 28. h3 {[%clk 0:00:03.1]} 28... Nxb4 {[%clk 0:00:19.1]}
29. g4 {[%clk 0:00:03.8]} 29... Bf7 {[%clk 0:00:19.1]} 30. g5 {[%clk 0:00:02.4]}
30... hxg5 {[%clk 0:00:17.7]} 31. fxg5 {[%clk 0:00:03.3]} 31... Ra2+ {[%clk
0:00:17.7]} 32. Ke3 {[%clk 0:00:02]} 32... Be7 {[%clk 0:00:13.6]} 33. g6 {[%clk
0:00:02.5]} 33... Be8 {[%clk 0:00:12.9]} 34. Bd8 {[%clk 0:00:02]} 34... Bc5+
{[%clk 0:00:11.9]} 35. Kf4 {[%clk 0:00:02.6]} 35... Nc2 {[%clk 0:00:06.6]} 0-1

[Event "Early-Titled-Tuesday-Blitz-March-19-2024"]
[Site "Chess.com"]
[Date "2024.03.19"]
[Round "7"]
[White "bennyficial"]
[Black "Viktor_Poddubnyi"]
[Result "0-1"]
[WhiteElo "2115"]
[BlackElo "2304"]
[TimeControl "180+1"]
[EndTime "9:19:16 PDT"]
[Termination "Viktor_Poddubnyi won by resignation"]

1. Nf3 {[%clk 0:03:00.9]} 1... g6 {[%clk 0:02:59.4]} 2. e4 {[%clk 0:02:59.9]}
2... Bg7 {[%clk 0:03:00]} 3. d4 {[%clk 0:03:00.7]} 3... d6 {[%clk 0:03:00.2]} 4.
Bc4 {[%clk 0:02:58.5]} 4... c6 {[%clk 0:02:59.4]} 5. Bb3 {[%clk 0:02:56.2]} 5...
Nf6 {[%clk 0:02:58.8]} 6. Qe2 {[%clk 0:02:54.4]} 6... O-O {[%clk 0:02:58.1]} 7.
h3 {[%clk 0:02:52.8]} 7... Na6 {[%clk 0:02:47.7]} 8. Nc3 {[%clk 0:02:48.7]} 8...
Nc7 {[%clk 0:02:47.1]} 9. Bg5 {[%clk 0:02:36.7]} 9... Qe8 {[%clk 0:02:29.7]} 10.
O-O-O {[%clk 0:02:34.3]} 10... e5 {[%clk 0:02:27.1]} 11. g4 {[%clk 0:02:26.9]}
11... Ne6 {[%clk 0:02:14.7]} 12. dxe5 {[%clk 0:02:10.3]} 12... dxe5 {[%clk
0:02:07.3]} 13. Be3 {[%clk 0:02:04.8]} 13... Nd7 {[%clk 0:01:20.4]} 14. h4
{[%clk 0:01:51.8]} 14... Ndc5 {[%clk 0:01:14.7]} 15. h5 {[%clk 0:01:50.6]} 15...
Nxb3+ {[%clk 0:01:13.5]} 16. axb3 {[%clk 0:01:50.2]} 16... Nf4 {[%clk
0:01:12.3]} 17. Bxf4 {[%clk 0:01:48.5]} 17... exf4 {[%clk 0:01:13.2]} 18. e5
{[%clk 0:01:46.1]} 18... Bxg4 {[%clk 0:01:09.4]} 19. Rdg1 {[%clk 0:01:41.5]}
19... Bxf3 {[%clk 0:01:04.3]} 20. Qxf3 {[%clk 0:01:40.9]} 20... Qxe5 {[%clk
0:01:04.6]} 21. hxg6 {[%clk 0:01:29.6]} 21... hxg6 {[%clk 0:00:47.6]} 22. Qh3
{[%clk 0:01:29.7]} 22... Rfe8 {[%clk 0:00:44.4]} 23. Qh7+ {[%clk 0:00:51.1]}
23... Kf8 {[%clk 0:00:43.4]} 24. Qh3 {[%clk 0:00:51]} 24... Rad8 {[%clk
0:00:40.3]} 25. Qf3 {[%clk 0:00:50.5]} 25... Rd4 {[%clk 0:00:34.5]} 26. Rh7
{[%clk 0:00:49.6]} 26... Red8 {[%clk 0:00:29.1]} 27. Rgh1 {[%clk 0:00:48.9]}
27... a5 {[%clk 0:00:24.4]} 28. Qh3 {[%clk 0:00:46.8]} 28... a4 {[%clk
0:00:17.9]} 29. bxa4 {[%clk 0:00:46.4]} 29... Rc4 {[%clk 0:00:16.5]} 30. Qh4
{[%clk 0:00:35.3]} 30... Re8 {[%clk 0:00:14.1]} 31. Rxg7 {[%clk 0:00:13.2]}
31... Qxg7 {[%clk 0:00:13.3]} 32. Qh3 {[%clk 0:00:13.4]} 32... Qe5 {[%clk
0:00:11.9]} 33. Qf3 {[%clk 0:00:12.5]} 33... b5 {[%clk 0:00:10.9]} 34. axb5
{[%clk 0:00:10.2]} 34... cxb5 {[%clk 0:00:11.8]} 35. Rh7 {[%clk 0:00:09.5]}
35... b4 {[%clk 0:00:10.2]} 36. Nd1 {[%clk 0:00:08.7]} 36... Qc5 {[%clk
0:00:08.8]} 37. Qd3 {[%clk 0:00:05.7]} 37... Rd4 {[%clk 0:00:07.4]} 38. Rh8+
{[%clk 0:00:04.9]} 38... Kg7 {[%clk 0:00:06.4]} 39. Rxe8 {[%clk 0:00:03]} 39...
Rxd3 {[%clk 0:00:06.9]} 40. Rc8 {[%clk 0:00:02.4]} 40... Rxd1+ {[%clk
0:00:06.7]} 41. Kxd1 {[%clk 0:00:02.6]} 41... Qxc8 {[%clk 0:00:07.6]} 42. Kc1
{[%clk 0:00:03.1]} 42... Qe6 {[%clk 0:00:07.8]} 43. Kb1 {[%clk 0:00:04]} 43...
f3 {[%clk 0:00:08.5]} 0-1

[Event "Early-Titled-Tuesday-Blitz-March-19-2024"]
[Site "Chess.com"]
[Date "2024.03.19"]
[Round "7"]
[White "Lennis93"]
[Black "ExtremeLearner"]
[Result "1/2-1/2"]
[WhiteElo "2750"]
[BlackElo "2572"]
[TimeControl "180+1"]
[EndTime "9:19:17 PDT"]
[Termination "Game drawn by repetition"]

1. b3 {[%clk 0:03:00.9]} 1... Nf6 {[%clk 0:02:59.8]} 2. Bb2 {[%clk 0:03:00.9]}
2... d5 {[%clk 0:03:00.3]} 3. Nf3 {[%clk 0:03:00]} 3... c6 {[%clk 0:02:59.6]} 4.
g3 {[%clk 0:02:59.6]} 4... Bg4 {[%clk 0:02:59.4]} 5. Bg2 {[%clk 0:03:00]} 5...
Nbd7 {[%clk 0:02:59.1]} 6. h3 {[%clk 0:02:59.3]} 6... Bxf3 {[%clk 0:02:57.4]} 7.
Bxf3 {[%clk 0:03:00.2]} 7... e5 {[%clk 0:02:58.3]} 8. d3 {[%clk 0:02:59.3]} 8...
Bd6 {[%clk 0:02:47.9]} 9. Bg2 {[%clk 0:02:59.3]} 9... h5 {[%clk 0:02:47]} 10.
Nd2 {[%clk 0:02:57.3]} 10... h4 {[%clk 0:02:47]} 11. g4 {[%clk 0:02:57.4]} 11...
Qe7 {[%clk 0:02:40.9]} 12. e3 {[%clk 0:02:57.2]} 12... a5 {[%clk 0:02:32.5]} 13.
a4 {[%clk 0:02:56]} 13... Nc5 {[%clk 0:02:25.7]} 14. Qe2 {[%clk 0:02:45.1]}
14... Ne6 {[%clk 0:02:20.3]} 15. Nf3 {[%clk 0:02:40.1]} 15... Nd7 {[%clk
0:02:18.2]} 16. O-O {[%clk 0:02:35.9]} 16... O-O {[%clk 0:02:11]} 17. c4 {[%clk
0:02:22]} 17... f5 {[%clk 0:02:04.4]} 18. cxd5 {[%clk 0:02:20.5]} 18... cxd5
{[%clk 0:02:04.5]} 19. gxf5 {[%clk 0:02:19]} 19... Rxf5 {[%clk 0:02:04.4]} 20.
Nh2 {[%clk 0:02:19]} 20... Nf6 {[%clk 0:01:43.3]} 21. Ng4 {[%clk 0:02:18.6]}
21... Rg5 {[%clk 0:01:37.6]} 22. Kh1 {[%clk 0:02:09.2]} 22... Nxg4 {[%clk
0:01:26.6]} 23. hxg4 {[%clk 0:02:08.5]} 23... e4 {[%clk 0:01:09.5]} 24. dxe4
{[%clk 0:02:07]} 24... h3 {[%clk 0:00:58.3]} 25. Bxh3 {[%clk 0:01:54.2]} 25...
dxe4 {[%clk 0:00:58.7]} 26. Qc4 {[%clk 0:01:53.8]} 26... Kf7 {[%clk 0:00:50]}
27. Qxe4 {[%clk 0:01:53.3]} 27... Rh8 {[%clk 0:00:50.5]} 28. Qf3+ {[%clk
0:01:40.9]} 28... Kg8 {[%clk 0:00:49.8]} 29. Rac1 {[%clk 0:01:38.5]} 29... Rh4
{[%clk 0:00:41.4]} 30. Rc8+ {[%clk 0:01:37.4]} 30... Kh7 {[%clk 0:00:41.6]} 31.
Kg2 {[%clk 0:01:24]} 31... Nc5 {[%clk 0:00:19.6]} 32. Rh1 {[%clk 0:01:18.4]}
32... Ne4 {[%clk 0:00:15.1]} 33. Bd4 {[%clk 0:01:01.2]} 33... Qe6 {[%clk
0:00:11.2]} 34. Rc2 {[%clk 0:00:47.9]} 34... Kg8 {[%clk 0:00:10.4]} 35. Kg1
{[%clk 0:00:41.6]} 35... Bb4 {[%clk 0:00:06.7]} 36. Rh2 {[%clk 0:00:20.4]} 36...
Nd2 {[%clk 0:00:06.9]} 37. Rxd2 {[%clk 0:00:17.9]} 37... Bxd2 {[%clk 0:00:07.8]}
38. Qxb7 {[%clk 0:00:18.2]} 38... Rhxg4+ {[%clk 0:00:07.4]} 39. Bxg4 {[%clk
0:00:18.2]} 39... Qxg4+ {[%clk 0:00:08.3]} 40. Rg2 {[%clk 0:00:13.2]} 40... Qd1+
{[%clk 0:00:08.4]} 41. Kh2 {[%clk 0:00:13.5]} 41... Qh5+ {[%clk 0:00:08.1]} 42.
Kg1 {[%clk 0:00:13.9]} 42... Qd1+ {[%clk 0:00:08.3]} 43. Kh2 {[%clk 0:00:14.3]}
43... Qh5+ {[%clk 0:00:05.9]} 44. Kg1 {[%clk 0:00:14.4]} 44... Qd1+ {[%clk
0:00:06.6]} 1/2-1/2

[Event "Early-Titled-Tuesday-Blitz-March-19-2024"]
[Site "Chess.com"]
[Date "2024.03.19"]
[Round "7"]
[White "Rodalquilar"]
[Black "rhungaski"]
[Result "1-0"]
[WhiteElo "2794"]
[BlackElo "2605"]
[TimeControl "180+1"]
[EndTime "9:19:19 PDT"]
[Termination "Rodalquilar won on time"]

1. d4 {[%clk 0:03:00.9]} 1... Nf6 {[%clk 0:02:57.4]} 2. Nf3 {[%clk 0:03:00]}
2... g6 {[%clk 0:02:55.5]} 3. Bf4 {[%clk 0:03:00.2]} 3... Bg7 {[%clk 0:02:55]}
4. e3 {[%clk 0:03:00.9]} 4... O-O {[%clk 0:02:55.6]} 5. Be2 {[%clk 0:03:01.5]}
5... d6 {[%clk 0:02:56.4]} 6. O-O {[%clk 0:03:01.9]} 6... Nfd7 {[%clk
0:02:57.1]} 7. e4 {[%clk 0:03:01.9]} 7... e5 {[%clk 0:02:54.9]} 8. Bg5 {[%clk
0:03:02.2]} 8... Bf6 {[%clk 0:02:45.8]} 9. Bxf6 {[%clk 0:02:59.8]} 9... Qxf6
{[%clk 0:02:36.3]} 10. Nc3 {[%clk 0:02:59.6]} 10... c6 {[%clk 0:02:35]} 11. a4
{[%clk 0:02:53.7]} 11... a5 {[%clk 0:02:33.6]} 12. dxe5 {[%clk 0:02:42.7]} 12...
dxe5 {[%clk 0:02:32]} 13. Nd2 {[%clk 0:02:31]} 13... Nb6 {[%clk 0:01:40.5]} 14.
Nb3 {[%clk 0:02:31]} 14... Be6 {[%clk 0:01:30.4]} 15. Nc5 {[%clk 0:02:31.1]}
15... Qe7 {[%clk 0:01:29.8]} 16. Nxe6 {[%clk 0:02:30.3]} 16... Qxe6 {[%clk
0:01:30.7]} 17. Re1 {[%clk 0:02:18.3]} 17... Qe7 {[%clk 0:01:23]} 18. Qc1 {[%clk
0:02:10]} 18... Kg7 {[%clk 0:01:20.2]} 19. Bf1 {[%clk 0:02:00.9]} 19... N8d7
{[%clk 0:01:19.1]} 20. Nd1 {[%clk 0:01:44.8]} 20... Nc5 {[%clk 0:01:17]} 21. b3
{[%clk 0:01:44.8]} 21... Rad8 {[%clk 0:01:16.3]} 22. f3 {[%clk 0:01:42.6]} 22...
Ne6 {[%clk 0:01:14.8]} 23. Ne3 {[%clk 0:01:35.3]} 23... Qc5 {[%clk 0:01:10.8]}
24. Kh1 {[%clk 0:01:35.4]} 24... h5 {[%clk 0:01:05.6]} 25. Nc4 {[%clk
0:01:30.1]} 25... Nxc4 {[%clk 0:01:03.5]} 26. Bxc4 {[%clk 0:01:31]} 26... Nf4
{[%clk 0:00:17.5]} 27. Rf1 {[%clk 0:01:21.1]} 27... h4 {[%clk 0:00:17.3]} 28.
Qe1 {[%clk 0:01:13.7]} 28... Rh8 {[%clk 0:00:16.9]} 29. Rd1 {[%clk 0:01:04.8]}
29... Rxd1 {[%clk 0:00:16.4]} 30. Qxd1 {[%clk 0:01:05.3]} 30... Nh5 {[%clk
0:00:17.2]} 31. h3 {[%clk 0:00:27.4]} 31... Ng3+ {[%clk 0:00:16.9]} 32. Kh2
{[%clk 0:00:28]} 32... Nxf1+ {[%clk 0:00:17.3]} 33. Qxf1 {[%clk 0:00:28.7]}
33... Rd8 {[%clk 0:00:13.1]} 34. Qe1 {[%clk 0:00:28.8]} 34... g5 {[%clk
0:00:07.4]} 35. Qc1 {[%clk 0:00:29]} 35... Kf6 {[%clk 0:00:06.6]} 36. Qe1 {[%clk
0:00:27.8]} 36... b6 {[%clk 0:00:06.2]} 37. Qc3 {[%clk 0:00:18.1]} 37... Qf2
{[%clk 0:00:04.5]} 38. Bd3 {[%clk 0:00:13.1]} 38... c5 {[%clk 0:00:03.3]} 39.
Qc4 {[%clk 0:00:11.6]} 39... Qg3+ {[%clk 0:00:02.7]} 40. Kg1 {[%clk 0:00:11.7]}
40... Qe1+ {[%clk 0:00:02.8]} 41. Kh2 {[%clk 0:00:12.3]} 41... Qg3+ {[%clk
0:00:02.2]} 42. Kg1 {[%clk 0:00:12.9]} 42... g4 {[%clk 0:00:02.9]} 43. fxg4
{[%clk 0:00:12.2]} 43... Qe3+ {[%clk 0:00:03]} 44. Kh2 {[%clk 0:00:12.6]} 44...
Rd6 {[%clk 0:00:02.1]} 45. Qb5 {[%clk 0:00:12.4]} 1-0

[Event "Early-Titled-Tuesday-Blitz-March-19-2024"]
[Site "Chess.com"]
[Date "2024.03.19"]
[Round "7"]
[White "nihalsarin"]
[Black "PLAYER_2006_M"]
[Result "1-0"]
[WhiteElo "3176"]
[BlackElo "2939"]
[TimeControl "180+1"]
[EndTime "9:19:20 PDT"]
[Termination "nihalsarin won by resignation"]

1. a3 {[%clk 0:02:55.8]} 1... h6 {[%clk 0:02:56.8]} 2. e4 {[%clk 0:02:50.8]}
2... e6 {[%clk 0:02:45.8]} 3. d4 {[%clk 0:02:47.4]} 3... d5 {[%clk 0:02:46.2]}
4. Nc3 {[%clk 0:02:48.2]} 4... dxe4 {[%clk 0:02:37.4]} 5. Nxe4 {[%clk
0:02:49.1]} 5... Nd7 {[%clk 0:02:38]} 6. Nf3 {[%clk 0:02:37]} 6... Ngf6 {[%clk
0:02:37.9]} 7. Bd3 {[%clk 0:02:37]} 7... Nxe4 {[%clk 0:02:37.9]} 8. Bxe4 {[%clk
0:02:37.9]} 8... Nf6 {[%clk 0:02:38.7]} 9. Bd3 {[%clk 0:02:37.8]} 9... Bd6
{[%clk 0:02:38.4]} 10. Qe2 {[%clk 0:02:36.7]} 10... Bd7 {[%clk 0:02:03.9]} 11.
Ne5 {[%clk 0:02:36.1]} 11... Qe7 {[%clk 0:02:01.5]} 12. Bd2 {[%clk 0:02:28.6]}
12... O-O-O {[%clk 0:01:57.6]} 13. O-O {[%clk 0:02:26.7]} 13... g5 {[%clk
0:01:49.8]} 14. a4 {[%clk 0:02:23.5]} 14... Bxe5 {[%clk 0:01:47.7]} 15. dxe5
{[%clk 0:02:19.5]} 15... Nd5 {[%clk 0:01:47.5]} 16. a5 {[%clk 0:02:19.9]} 16...
Kb8 {[%clk 0:01:42.5]} 17. a6 {[%clk 0:02:10.9]} 17... b6 {[%clk 0:01:42]} 18.
c4 {[%clk 0:02:00.5]} 18... Nf4 {[%clk 0:01:38.6]} 19. Bxf4 {[%clk 0:02:00.3]}
19... gxf4 {[%clk 0:01:38.9]} 20. Qf3 {[%clk 0:01:58.4]} 20... Bc8 {[%clk
0:01:38.8]} 21. Be4 {[%clk 0:01:59.1]} 21... Rd4 {[%clk 0:01:28.5]} 22. b3
{[%clk 0:01:55.3]} 22... c5 {[%clk 0:01:17.5]} 23. Rfe1 {[%clk 0:01:28.8]} 23...
Qc7 {[%clk 0:01:14.9]} 24. Qxf4 {[%clk 0:01:27.3]} 24... f5 {[%clk 0:01:15]} 25.
f3 {[%clk 0:01:15.7]} 25... Rhd8 {[%clk 0:01:10.1]} 26. h3 {[%clk 0:01:09.2]}
26... fxe4 {[%clk 0:00:50.4]} 27. Rxe4 {[%clk 0:01:10.1]} 27... Rd1+ {[%clk
0:00:49.3]} 28. Rxd1 {[%clk 0:01:07.7]} 28... Rxd1+ {[%clk 0:00:50.2]} 29. Kh2
{[%clk 0:01:08.6]} 29... Bxa6 {[%clk 0:00:45.3]} 30. Qxh6 {[%clk 0:01:08.4]}
30... Rd4 {[%clk 0:00:45.9]} 31. Qxe6 {[%clk 0:01:03.3]} 31... Bc8 {[%clk
0:00:41]} 32. Qf6 {[%clk 0:01:01.3]} 32... Rxe4 {[%clk 0:00:32.8]} 33. fxe4
{[%clk 0:01:02.2]} 33... a6 {[%clk 0:00:29.1]} 34. h4 {[%clk 0:00:52.9]} 34...
b5 {[%clk 0:00:26.9]} 35. h5 {[%clk 0:00:50.2]} 35... bxc4 {[%clk 0:00:24.4]}
36. bxc4 {[%clk 0:00:51.1]} 36... Qh7 {[%clk 0:00:24.2]} 37. h6 {[%clk
0:00:17.1]} 37... Qxe4 {[%clk 0:00:24.1]} 38. Qd6+ {[%clk 0:00:15.6]} 38... Ka8
{[%clk 0:00:21.5]} 39. Qd5+ {[%clk 0:00:14]} 39... Qxd5 {[%clk 0:00:13.3]} 40.
cxd5 {[%clk 0:00:14.9]} 40... Bf5 {[%clk 0:00:13.9]} 41. e6 {[%clk 0:00:15.1]}
41... c4 {[%clk 0:00:06.7]} 42. e7 {[%clk 0:00:14.9]} 42... Bg6 {[%clk
0:00:07.1]} 43. d6 {[%clk 0:00:13.3]} 43... c3 {[%clk 0:00:06.7]} 44. d7 {[%clk
0:00:13.5]} 44... c2 {[%clk 0:00:07.4]} 45. e8=Q+ {[%clk 0:00:13.8]} 1-0

[Event "Early-Titled-Tuesday-Blitz-March-19-2024"]
[Site "Chess.com"]
[Date "2024.03.19"]
[Round "7"]
[White "AlexTruskavetsky"]
[Black "GMKrikor"]
[Result "0-1"]
[WhiteElo "2689"]
[BlackElo "2898"]
[TimeControl "180+1"]
[EndTime "9:19:21 PDT"]
[Termination "GMKrikor won by resignation"]

1. d4 {[%clk 0:02:59.6]} 1... Nf6 {[%clk 0:03:00]} 2. c4 {[%clk 0:02:59.4]} 2...
g6 {[%clk 0:03:00.6]} 3. Nc3 {[%clk 0:02:59.4]} 3... d5 {[%clk 0:03:01.1]} 4.
cxd5 {[%clk 0:02:59.5]} 4... Nxd5 {[%clk 0:03:02]} 5. e4 {[%clk 0:02:59.9]} 5...
Nxc3 {[%clk 0:03:02.6]} 6. bxc3 {[%clk 0:03:00.8]} 6... Bg7 {[%clk 0:03:03.2]}
7. Nf3 {[%clk 0:03:01.2]} 7... c5 {[%clk 0:03:02.9]} 8. Be2 {[%clk 0:03:01.6]}
8... O-O {[%clk 0:02:50.1]} 9. O-O {[%clk 0:03:01.1]} 9... b6 {[%clk 0:02:50.9]}
10. Be3 {[%clk 0:02:59.8]} 10... Bb7 {[%clk 0:02:50.5]} 11. Qc2 {[%clk
0:02:59.5]} 11... Nd7 {[%clk 0:02:41]} 12. Rfd1 {[%clk 0:02:59.2]} 12... cxd4
{[%clk 0:02:37.8]} 13. cxd4 {[%clk 0:03:00.1]} 13... Rc8 {[%clk 0:02:38.1]} 14.
Qd3 {[%clk 0:02:58.6]} 14... Nf6 {[%clk 0:02:38.3]} 15. Nd2 {[%clk 0:02:58.6]}
15... Qd7 {[%clk 0:02:29.8]} 16. h3 {[%clk 0:02:51.6]} 16... Rfd8 {[%clk
0:02:26.1]} 17. Rac1 {[%clk 0:02:49.1]} 17... Qa4 {[%clk 0:02:23.8]} 18. f3
{[%clk 0:02:21.4]} 18... Nh5 {[%clk 0:02:14]} 19. Nf1 {[%clk 0:02:01.7]} 19...
Rxc1 {[%clk 0:01:40.5]} 20. Rxc1 {[%clk 0:02:01.4]} 20... Bxd4 {[%clk
0:01:34.4]} 21. Kh1 {[%clk 0:01:47.8]} 21... e5 {[%clk 0:01:25.4]} 22. Rc7
{[%clk 0:01:32.7]} 22... Bc8 {[%clk 0:00:59]} 23. Qc4 {[%clk 0:01:21.4]} 23...
Qxc4 {[%clk 0:00:52.7]} 24. Bxc4 {[%clk 0:01:22.3]} 24... Ng3+ {[%clk
0:00:36.5]} 25. Nxg3 {[%clk 0:01:16.3]} 25... Bxe3 {[%clk 0:00:36.8]} 26. Bxf7+
{[%clk 0:01:16.5]} 26... Kh8 {[%clk 0:00:35.5]} 27. Bd5 {[%clk 0:01:16.6]} 27...
a5 {[%clk 0:00:32.9]} 28. Ne2 {[%clk 0:01:10.9]} 28... Ba6 {[%clk 0:00:32]} 29.
Nc3 {[%clk 0:01:07.9]} 29... Rc8 {[%clk 0:00:23.9]} 30. Rxc8+ {[%clk 0:01:02.5]}
30... Bxc8 {[%clk 0:00:24]} 31. Nb5 {[%clk 0:01:03.1]} 31... Kg7 {[%clk
0:00:20.4]} 32. Nd6 {[%clk 0:01:00.8]} 32... Bd7 {[%clk 0:00:19.1]} 33. Nc4
{[%clk 0:01:00.3]} 33... Bd4 {[%clk 0:00:19.5]} 34. Kh2 {[%clk 0:00:56.4]} 34...
a4 {[%clk 0:00:19.7]} 35. g3 {[%clk 0:00:51.2]} 35... b5 {[%clk 0:00:17.9]} 36.
Nd6 {[%clk 0:00:51.3]} 36... Kf6 {[%clk 0:00:16.7]} 37. f4 {[%clk 0:00:48.5]}
37... Ke7 {[%clk 0:00:16]} 38. Nb7 {[%clk 0:00:47.9]} 38... exf4 {[%clk
0:00:14.8]} 39. gxf4 {[%clk 0:00:47.8]} 39... b4 {[%clk 0:00:15.5]} 40. Na5
{[%clk 0:00:46.4]} 40... Kd6 {[%clk 0:00:13.8]} 41. Kg3 {[%clk 0:00:42.7]} 41...
Bb5 {[%clk 0:00:09.7]} 42. Nc4+ {[%clk 0:00:35.6]} 42... Kc5 {[%clk 0:00:09.8]}
43. Nd2 {[%clk 0:00:35.8]} 43... Bc3 {[%clk 0:00:09.4]} 44. Nb1 {[%clk
0:00:34.5]} 44... Be1+ {[%clk 0:00:09.6]} 45. Kf3 {[%clk 0:00:34.2]} 45... Bd3
{[%clk 0:00:10.5]} 46. Bg8 {[%clk 0:00:29.2]} 46... Bxb1 {[%clk 0:00:10.4]} 47.
e5 {[%clk 0:00:29.8]} 47... Bc3 {[%clk 0:00:08.2]} 48. Bxh7 {[%clk 0:00:29.2]}
48... Bxa2 {[%clk 0:00:07.9]} 49. Bxg6 {[%clk 0:00:29.7]} 49... Bd5+ {[%clk
0:00:07.8]} 50. Ke3 {[%clk 0:00:29.7]} 50... a3 {[%clk 0:00:08.3]} 51. Bb1
{[%clk 0:00:27.7]} 51... b3 {[%clk 0:00:08.6]} 52. Ba2 {[%clk 0:00:28.6]} 52...
bxa2 {[%clk 0:00:08.9]} 0-1